Cogmind - Beta 11.1 @@@ ROGUE MODE // 2022.05.02 @ 02:16:52 Player: Olga Result: Destroyed by G-34 Mercenary with Small Laser Performance ------------- Evolutions (1) 500 Regions Visited (3) 600 Robots Destroyed (2) 10 Value Destroyed (68) 68 Prototype IDs (0) 0 Alien Tech Used (0) 0 Bonus (332) 332 TOTAL SCORE: 1510 Bonus ------- Pacifist 200 Follower Combat Kills 132 Cogmind --------- Core Integrity 0/400 Matter 258/300 Energy 100/100 System Corruption 3% Temperature Cool (15) Movement Core (50) Location -9/Storage Parts ------- > --- POWER (1) -------- (None) > --- PROPULSION (2) --- (None) > --- UTILITY (4) ------ (None) > --- WEAPON (2) ------- (None) > --- INVENTORY (5) ---- Propulsion Shielding Propulsion Shielding Propulsion Shielding Light Armor Plating Peak State ------------ > --- POWER ------------ (None) > --- PROPULSION ------- (None) > --- UTILITY ---------- Structural Scanner > --- WEAPON ----------- Assault Rifle Light Assault Rifle > --- INVENTORY -------- Propulsion Shielding Propulsion Shielding Propulsion Shielding Light Armor Plating Light Assault Rifle [Rating: 3] Favorites ----------- Power None Propulsion None Utility Structural Scanner Device Structural Scanner Weapon Assault Rifle Ballistic Gun Assault Rifle Launcher Grenade Launcher Build | -11 -10 -9 -9 ------- Run | Scr Mat Mat Sto Slots Evolved 2 | . . 2 . Power . | . . . . Propulsion . | . . . . Utility 2 | . . 2 . Weapon . | . . . . Parts Attached 5 | 1 2 . 2 Power . | . . . . Engine . | . . . . Core . | . . . . Reactor . | . . . . Propulsion . | . . . . Treads . | . . . . Leg . | . . . . Wheel . | . . . . Hover . | . . . . Flight . | . . . . Utility 1 | . 1 . . Device 1 | . 1 . . Storage . | . . . . Processor . | . . . . Hackware . | . . . . Protection . | . . . . Artifact . | . . . . Weapon 4 | 1 1 . 2 Energy Gun . | . . . . Energy Cannon . | . . . . Ballistic Gun 2 | 1 1 . . Ballistic Cannon . | . . . . Launcher 2 | . . . 2 Special Weapon . | . . . . Impact Weapon . | . . . . Slashing Weapon . | . . . . Piercing Weapon . | . . . . Special Melee Weapon . | . . . . Unidentified Prototypes . | . . . . Parts Lost 2 | . . 1 1 Power . | . . . . Propulsion . | . . . . Utility . | . . . . Weapon 2 | . . 1 1 Highest Loss Streak 1 | . . 1 1 To Critical Strikes . | . . . . Average Slot Usage (%) 15 | . 21 16 6 Device 5 | . 3 11 . Ballistic Gun 7 | . 18 5 . Launcher 1 | . . . 6 Naked Turns 28 | . . . 28 Heaviest Build 3 | 2 3 3 3 Greatest Support 3 | 3 3 3 3 Greatest Overweight (x) . | . . . . Average Overweight (x) . | . . . . Largest Inventory Capacity 5 | 5 5 5 5 Average Capacity 5 | 5 5 5 5 Most Carried 5 | 4 5 5 5 Average Carried 4 | 1 3 5 4 Final Capacity 5 | 5 5 5 5 Final Carried 5 | . 5 5 4 Class Distribution -------------------- 100% | Mutant Dominant Class ---------------- Mutant | -10/Materials Mutant | -9/Materials Mutant | -9/Storage Resources | -11 -10 -9 -9 ----------- Run | Scr Mat Mat Sto Matter Collected 223 | 200 . . 23 Remotely . | . . . . Salvage Created 65 | . . . 65 Parts 3 | . . . 3 Haulers Intercepted . | . . . . Recyclers Shooed . | . . . . Parts Field Recycled . | . . . . Retrieved Matter . | . . . . Parts Self-Destructed . | . . . . Prevented . | . . . . Kills | -11 -10 -9 -9 ------- Run | Scr Mat Mat Sto Combat Hostiles Destroyed 2 | . . . 2 AOE 2 | . . . 2 Classes Destroyed 1 | . . . 1 Grunt 2 | . . . 2 Best Kill Streak 2 | . . . 2 Combat Bots Only 2 | . . . 2 Max Kills in Single Turn 1 | . . . 1 Gunslinging . | . . . . Exploded 1 | . . . 1 Melee . | . . . . Uniques/NPCs Destroyed . | . . . . Combat | -11 -10 -9 -9 -------- Run | Scr Mat Mat Sto Damage Taken 668 | . 56 163 449 Core 447 | . 45 63 339 Absorbed by Shields . | . . . . Core Remaining (%) 91 | 100 82 . . Volleys Fired 6 | . . 1 5 Largest 1 | . . 1 1 Hottest 30 | . . 20 30 Shots Fired 7 | . . 1 6 Gun 1 | . . 1 . Cannon . | . . . . Launcher 6 | . . . 6 Special . | . . . . Kinetic 1 | . . 1 . Thermal . | . . . . Explosive 6 | . . . 6 Electromagnetic . | . . . . Robot Hit Streak 1 | . . 1 1 Robot Miss Streak 1 | . . . 1 Penetration Max . | . . . . Secondary Targets . | . . . . Shots Hit Robots 2 | . . 1 1 Core Hits 8 | . . 1 7 Critical Kills . | . . . . Critical Parts Destroyed . | . . . . Critical Strikes . | . . . . Melee Attacks . | . . . . Impact . | . . . . Slashing . | . . . . Piercing . | . . . . Sneak Attacks . | . . . . Combat Hostiles . | . . . . Follow-up Attacks . | . . . . Damage Inflicted 274 | . . 40 234 Guns 10 | . . 10 . Cannons . | . . . . Explosions 231 | . . . 231 Melee . | . . . . Ramming 33 | . . 30 3 Kinetic 10 | . . 10 . Thermal . | . . . . Explosive 231 | . . . 231 Electromagnetic . | . . . . Impact . | . . . . Slashing . | . . . . Piercing . | . . . . Highest Corruption 3 | . 1 3 3 Average Corruption 2 | . 1 2 3 Corruption Purged . | . . . . Corruption Blocked . | . . . . Effects 4 | . 1 1 2 Message Errors 1 | . . . 1 Matter Fused 2 | . 1 1 . Misfires 1 | . . . 1 Overload Shots . | . . . . Overflow Damage . | . . . . Projectiles . | . . . . Explosions . | . . . . Melee . | . . . . Knockbacks . | . . . . Impact . | . . . . Kinetic . | . . . . Secondary . | . . . . Self-Inflicted Damage 108 | . . 13 95 Shots 5 | . . . 5 Rammed 15 | . . 12 3 Targets Rammed 15 | . . 12 3 Kicked . | . . . . Crushed . | . . . . Highest Temperature 14 | . . . 14 Average Temperature 8 | . . . 8 Received Heat Transfer 141 | . 18 27 96 Siege Activations . | . . . . Robots Corrupted . | . . . . Combat Hostiles . | . . . . Parts Fried . | . . . . Impact Corruptions . | . . . . Robots Melted . | . . . . Combat Hostiles . | . . . . Parts Melted . | . . . . Heat Transferred . | . . . . Parts Sabotaged . | . . . . Parts Stolen . | . . . . Parts Stripped . | . . . . Power Chain Reactions . | . . . . Missiles Intercepted . | . . . . Alert | -11 -10 -9 -9 ------- Run | Scr Mat Mat Sto Peak Influence 389 | . 15 129 389 Initial 53 | . . 5 53 Average 70 | . 8 47 174 Maximum Alert Level 1 | . . . 1 Low Security (%) 87 | 100 100 100 55 Level 1 12 | . . . 45 Level 2 . | . . . . Level 3 . | . . . . Level 4 . | . . . . Level 5 . | . . . . High Security . | . . . . Max Security . | . . . . Squads Dispatched 5 | . 1 1 3 Investigation 1 | . 1 . . Extermination . | . . . . Reinforcement 2 | . . 1 1 Assault 2 | . . . 2 Garrison . | . . . . Intercept . | . . . . Searches Triggered . | . . . . Construction Impeded . | . . . . Haulers Reinforced . | . . . . Active Scanning Responses . | . . . . Cargo Convoy Interrupts . | . . . . Stealth | -11 -10 -9 -9 --------- Run | Scr Mat Mat Sto Distress Signals 1 | . . . 1 Communications Jammed . | . . . . Distress Signals . | . . . . Times Spotted 29 | . 6 9 14 Peak Tracking Total 9 | . 6 7 9 Tactical Retreats 3 | . . 3 . Traps | -11 -10 -9 -9 ------- Run | Scr Mat Mat Sto Traps Triggered 4 | . . 2 2 Indirectly . | . . . . Trap Hack Attempts . | . . . . Triggered . | . . . . Disarmed . | . . . . Reprogrammed . | . . . . Reused . | . . . . Traps Extracted . | . . . . Installed . | . . . . Triggered . | . . . . Machines | -11 -10 -9 -9 ---------- Run | Scr Mat Mat Sto Machines Disabled . | . . . . Max in Single Turn . | . . . . Machines Sabotaged . | . . . . Garrisons Compromised . | . . . . Overloaded Fab Kills . | . . . . Hacking | -11 -10 -9 -9 --------- Run | Scr Mat Mat Sto Machines Accessed 5 | . 2 2 1 Terminals 5 | . 2 2 1 Fabricators . | . . . . Repair Stations . | . . . . Recycling Units . | . . . . Scanalyzers . | . . . . Garrison Access . | . . . . Total Hacks 14 | . 8 5 1 Successful 3 | . 1 1 1 Failed 11 | . 7 4 . Catastrophic . | . . . . Database Lockouts . | . . . . Manual 8 | . 5 3 . Terminals 14 | . 8 5 1 Fabricators . | . . . . Repair Stations . | . . . . Recycling Units . | . . . . Scanalyzers . | . . . . Garrison Access . | . . . . Terminal Hacks 3 | . 1 1 1 Open Door 1 | . . . 1 Emergency Access Points 1 | . . 1 . Terminal Index 1 | . 1 . . Fabricator Hacks . | . . . . Repair Station Hacks . | . . . . Recycling Unit Hacks . | . . . . Scanalyzer . | . . . . Garrison Access Hacks . | . . . . Unauthorized Hacks . | . . . . Terminals . | . . . . Fabricators . | . . . . Repair Stations . | . . . . Recycling Units . | . . . . Scanalyzers . | . . . . Garrison Access . | . . . . Data Cores Recovered . | . . . . Used . | . . . . Hacking Detections 4 | . 2 2 . Full Trace Events 2 | . 1 1 . Feedback Events 1 | . 1 . . Corruption 1 | . 1 . . Feedback Blocked . | . . . . Robot Schematics Acquired . | . . . . Robots Built . | . . . . Authchips . | . . . . Time . | . . . . Total Robot Build Rating . | . . . . Part Schematics Acquired . | . . . . Parts Built . | . . . . Authchips . | . . . . Time . | . . . . Total Part Build Rating . | . . . . Parts Repaired . | . . . . Time . | . . . . Parts Recycled . | . . . . Recycled Matter . | . . . . Retrieved Matter . | . . . . Retrieved Components . | . . . . Parts Scanalyzed . | . . . . Part Schematics Acquired . | . . . . Parts Damaged . | . . . . Bothacking | -11 -10 -9 -9 ------------ Run | Scr Mat Mat Sto Used RIF Installer . | . . . . Robots Hacked . | . . . . Non-combat . | . . . . Combat . | . . . . Robot Hacks Applied . | . . . . Relay Couplers Released . | . . . . Fabnet Peak Effective % . | . . . . Robots Rewired . | . . . . Allies Hacked . | . . . . Hacks Repelled . | . . . . Allies | -11 -10 -9 -9 -------- Run | Scr Mat Mat Sto Total Allies 2 | . . . 2 Largest Group 2 | . . . 2 Highest-Rated Group 62 | . . . 62 Highest-Rated Ally 31 | . . . 31 Total Orders . | . . . . Ally Attacks 5 | . . . 5 Total Damage 86 | . . . 86 Kills 4 | . . . 4 Allies Corrupted . | . . . . Allies Melted . | . . . . Intel | -11 -10 -9 -9 ------- Run | Scr Mat Mat Sto Robot Analysis Total . | . . . . Derelict Logs Recovered . | . . . . Drone Launches . | . . . . Drone Recoveries . | . . . . Exploration | -11 -10 -9 -9 ------------- Run | Scr Mat Mat Sto Turns Passed 281 | 6 86 109 80 Spaces Moved 473 | 3 155 189 126 Core 473 | 3 155 189 126 Treads . | . . . . Legs . | . . . . Wheels . | . . . . Hover . | . . . . Flight . | . . . . Fastest Speed 50 | 50 50 50 50 Average Speed 50 | 50 50 50 50 Slowest Speed 50 | 50 50 50 50 Overloaded Moves . | . . . . Propulsion Burnouts . | . . . . Robots Hopped . | . . . . Cave-ins Triggered . | . . . . Exploration Rate (%) 23 | 2 41 31 20 Regions Visited 3 Branch Regions 1 Pre-discovered Areas . | . . . . Known Exits Taken . | . . . . Unknown Exits Taken 3 | 1 1 1 . Scrap Searched . | . . . . Spaces Dug . | . . . . Terrain Destroyed 54 | . . . 54 Melee . | . . . . Projectile . | . . . . AOE 54 | . . . 54 Terrain Rammed . | . . . . Walls Destroyed . | . . . . Machines Disabled . | . . . . Actions | -11 -10 -9 -9 --------- Run | Scr Mat Mat Sto Total 511 | 8 162 202 139 Wait 1 | . . 1 . Move 471 | 2 154 189 126 Hop . | . . . . Pick Up 6 | . 5 . 1 Fast Attach 4 | 1 2 . 1 Attach 1 | . . . 1 Detach . | . . . . Swap . | . . . . Drop 8 | 5 1 . 2 Fire 6 | . . 1 5 Melee . | . . . . Ram 14 | . . 11 3 Kick . | . . . . Crush . | . . . . Escape Stasis . | . . . . Rewire . | . . . . Trap . | . . . . Miscellaneous . | . . . . Route ------- -11/Scrapyard -10/Materials (discovered 2 exits: *Mat / [*Min]) -9/Materials -9/Storage History --------- Turn | Location | Event 1 | -11/Scrapyard | Released all parts (6) 3 | -11/Scrapyard | Discovered new exit (range 3) 7 | -11/Scrapyard | Entered Materials 20 | -10/Materials | Discovered new exit (range 14) 86 | -10/Materials | Discovered new exit (range 16) 93 | -10/Materials | Entered another Materials area 93 | -9/Materials | Evolved 2 slots: Utility x2 198 | -9/Materials | Discovered new exit (range 8) 202 | -9/Materials | Entered Storage 232 | -9/Storage | Met a pair of Derelict thieves 249 | -9/Storage | Core integrity fell below 50% 281 | -9/Storage | Core integrity fell below 20% 282 | -9/Storage | Destroyed by G-34 Mercenary with Small Laser Last Messages --------------- 00254_ 7RZ1K 2OG IBW/WM#81 00262_ Y-45 Defender destroyed. 00264_ U-05 Engineer lays Concrete. 00266_ U-05 Engineer builds a Wall. 00270_ U-05 Engineer lays Concrete. 00272_ U-05 Engineer builds a Wall. 00276_ C-30 ARC bursts open, deploying its payload. 00276_ G-47 Trooper unfolds itself. 00276_ L-31 Rogue unfolds itself. 00276_ G-34 Mercenary unfolds itself. 00276_ G-34 Mercenary destroyed. 00277_ C-30 ARC bursts open, deploying its payload. 00277_ G-47 Trooper unfolds itself. 00277_ L-31 Rogue unfolds itself. 00278_ G-34 Mercenary destroyed. 00280_ Grenade Launcher severed. 00280_ Slammed into L-31 Rogue. 00281_ Acquired 23 matter. 00281_ Slammed into G-47 Trooper. 00282_ Destabilizing: Core damaged (-4). Map ----- +----------------------------------------------------+ | ???????????????????# """ """ #??? #????# | | ???????????????????# """ """ #?## """ """ #????# | | ???????????????????# """ """ #?# """ """ ####### | | ???????????????????# #??# """ """ #]] | | ???????????????????# #??# #]] # | | ??????????????????## #??# !! #]] # | | ??????????????????# #??# !! ####?# | | ???????????????????? ##?# ###### | | ????????################ ##########+### # | | ????????# %* !%= | | ????????# ! !![ | | ????????# | | ????????########+##### # # #######+###### ## | | ?????????????## #?# ##??# ##??######? | | ?????????????#T #?# """"" #???# T#????????? | | ?????????????## #?# """"" #???##" "###???????? | | ??????????????#! ]#?# """"" ##### #???????? | | ??????????????#] ]#?# """## !!#???????? | | ??????????????# []#?# """"" R"##!! ! #???????? | | ??????????????#] ]#?# """"" """##! ! !#???????? | | ??????????????#####?# """"" ############???????? | | ????????????????????# #??????????????????? | | ????????????????????## ###??????????????????? | | ?????????????????????# ] #????????????????????? | | ?????????????????????# l l #????????????????????? | | ?????????????????????# g@g #????????????????????? | | ?????????????????????##ig ##????????????????????? | | ??????????????????????##g##?????????????????????? | | ???????????????????????#%#??????????????????????? | | ???????????????????????#%#??????????????????????? | | ??????????????????????? ??????????????????????? | | ???????????????????????###??????????????????????? | | ????????????????????????????????????????????????? | | ????????????????????????????????????????????????? | | ????????????????????????????????????????????????? | | ????????????????????????????????????????????????? | | ????????????????????????????????????????????????? | | ????????????????????????????????????????????????? | | ????????????????????????????????????????????????? | | ????????????????????????????????????????????????? | | ????????????????????????????????????????????????? | | ????????????????????????????????????????????????? | | ????????????????????????????????????????????????? | | ????????????????????????????????????????????????? | | ????????????????????????????????????????????????? | | ????????????????????????????????????????????????? | | ????????????????????????????????????????????????? | | ????????????????????????????????????????????????? | | ????????????????????????????????????????????????? | | ????????????????????????????????????????????????? | +----------------------------------------------------+ Best States ------------- Heat Dissipation 28 Energy Generation 5 Energy Capacity 100 Matter Stores 300 Matter Capacity 300 Sight Range 16 Terrain Scan Density 10 Evasion (%) 50 Item Schematics ----------------- None Robot Schematics ------------------ None Fabricated ------------ Nothing Alien Tech Used ----------------- None Achievements -------------- None Challenges ------------ None Game ------ Seed MiniBehemothLauncher Manual? 0 Play Time 00:06:45 Cumulative 151.0 hours Start 2022.05.02 @ 02:11:42 End 2022.05.02 @ 02:16:52 Sessions 1 Manual Loads 0 Difficulty Rogue Special Mode None Game No. 237 Rogue 236 Adventurer 0 Explorer 1 Win Type - Total 7 Types 7/0/0/0/0/0/0/0/0 Lore% 60 Gallery% 62 Achievement% 51 Wizard Run 0 Options --------- ASCII 1 Keyboard 0 Movement Vi Keybinds 0 Fullscreen 1 Font 18/SmallcapsGlow Map View 76x50 Tactical HUD 1 Map Filters NONE Filters NONE Steam 1 RUN: 1aec9d40-86df-4274-b0ee-235d1c8ef15d